[Event "10th Cesme Open-A 2024"]
[Site "Cesme"]
[Date "2024.06.27"]
[Round "6"]
[White "Kavri, Yusuf Eren"]
[Black "Karaoglan, Kivanc"]
[Result "0-1"]
[ECO "E43"]
[WhiteElo "2059"]
[BlackElo "2274"]
[Annotator "RC"]
[PlyCount "102"]
[EventDate "2024.06.23"]
[EventType "swiss"]
[EventCountry "TUR"]
[SourceTitle "playchess.com"]
[Source "ChessBase"]
[SourceQuality "1"]
[TimeControl "5400+30"]

1. d4 {[%emt 0:01:00]} Nf6 {[%emt 0:01:00]} 2. c4 {[%emt 0:00:30]} e6 {[%emt 0:00:30]} 3. Nc3 {[%emt 0:00:00]} Bb4 {[%emt 0:00:30]} 4. Nf3 {[%emt 0:00:00]} b6 {[%emt 0:01:30]} 5. e3 {[%emt 0:00:30]} Bb7 {[%emt 0:03:30]} 6. Bd3 {[%emt 0:00:30]} Ne4 {[%emt 0:02:30]} 7. Qc2 {[%emt 0:02:30]} f5 {[%emt 0:01:30]} 8. O-O {[%emt 0:00:30]} Bxc3 {[%emt 0:00:30]} 9. bxc3 {[%emt 0:00:00]} O-O {[%emt 0:00:30]} 10. Nd2 {[%emt 0:00:00]} Nxd2 {[%emt 0:06:30]} 11. Bxd2 {[%emt 0:00:00]} d6 {[%emt 0:05:30]} 12. e4 {[%emt 0:09:00]} Qf6 {[%emt 0:00:30]} 13. Rae1 {[%emt 0:06:30]} Nd7 {[%emt 0:01:30]} 14. f4 {[%emt 0:06:30]} Qg6 {[%emt 0:05:30]} 15. Rf3 {[%emt 0:03:30]} fxe4 {[%emt 0:02:30]} 16. Bxe4 {[%emt 0:02:30]} Bxe4 {[%emt 0:00:30]} 17. Qxe4 {[%emt 0:00:00]} Qxe4 {[%emt 0:00:30]} 18. Rxe4 {[%emt 0:00:00]} Rae8 {[%emt 0:01:30]} 19. h3 {[%emt 0:11:30]} Rf5 {[%emt 0:12:30]} 20. d5 {[%emt 0:07:30]} Nf6 {[%emt 0:03:30]} 21. Re1 {[%emt 0:12:30]} h5 {[%emt 0:00:30]} 22. dxe6 {[%emt 0:05:30]} Rc5 {[%emt 0:01:30]} 23. f5 {[%emt 0:01:30]} Rxc4 {[%emt 0:01:30]} 24. Rf4 {[%emt 0:00:00]} Rxf4 {[%emt 0:02:30]} 25. Bxf4 {[%emt 0:00:00]} g6 {[%emt 0:00:30]} 26. fxg6 {[%emt 0:06:30]} Kg7 {[%emt 0:00:30]} 27. Bg3 {[%emt 0:02:30]} Kxg6 {[%emt 0:02:30]} 28. Bh4 {[%emt 0:00:30]} Nd5 {[%emt 0:11:30]} 29. c4 {[%emt 0:01:30]} Ne7 {[%emt 0:00:30]} 30. Bxe7 {[%emt 0:11:29]} Rxe7 {[%emt 0:00:00]} 31. Kf2 {[%emt 0:00:19]} Kf6 {[%emt 0:07:00]} 32. Kg3 {[%emt 0:03:44]} Rxe6 {[%emt 0:00:30]} 33. Rxe6+ {[%emt 0:02:17]} Kxe6 {[%emt 0:00:30]} 34. Kh4 {[%emt 0:00:00]} c5 {[%emt 0:03:30]} 35. Kxh5 {[%emt 0:01:30]} b5 {[%emt 0:00:00]} 36. Kg4 {[%emt 0:00:34]} bxc4 {[%emt 0:00:00]} 37. Kf3 {[%emt 0:00:37]} c3 {[%emt 0:00:30]} 38. Ke2 {[%emt 0:01:09]} d5 {[%emt 0:00:30]} 39. h4 {[%emt 0:00:30]} Kf5 {[%emt 0:00:00]} 40. h5 {[%emt 0:00:04]} Kg5 {[%emt 0:00:00]} 41. g4 {[%emt 0:00:00]} d4 {[%emt 0:00:30]} 42. Kd3 {[%emt 0:01:21]} c4+ {[%emt 0:00:30]} 43. Kc2 {[%emt 0:00:30]} Kh6 {[%emt 0:00:30]} 44. a4 {[%emt 0:00:00]} a5 {[%emt 0:00:30]} 45. Kc1 {[%emt 0:00:00]} d3 {[%emt 0:00:30]} 46. Kd1 {[%emt 0:00:00]} c2+ {[%emt 0:00:00]} 47. Kd2 {[%emt 0:00:00]} Kg5 {[%emt 0:00:00]} 48. Kc1 {[%emt 0:00:29]} c3 {[%emt 0:00:00]} 49. h6 {[%emt 0:00:00]} Kxh6 {[%emt 0:00:00]} 50. g5+ {[%emt 0:00:22]} Kg7 {[%emt 0:00:30]} 51. g6 {[%emt 0:00:30]} d2+ {[%emt 0:00:00]} 0-1

[Event "10th Cesme Open-A 2024"]
[Site "Cesme"]
[Date "2024.06.27"]
[Round "6"]
[White "Demirtas, Alper"]
[Black "Bolat, Inayat"]
[Result "0-1"]
[ECO "E65"]
[WhiteElo "2057"]
[BlackElo "2232"]
[Annotator "RC"]
[PlyCount "114"]
[EventDate "2024.06.23"]
[EventType "swiss"]
[EventCountry "TUR"]
[SourceTitle "playchess.com"]
[Source "ChessBase"]
[SourceQuality "1"]
[TimeControl "5400+30"]

1. Nf3 {[%emt 0:01:00]} Nf6 {[%emt 0:01:00]} 2. c4 {[%emt 0:00:00]} g6 {[%emt 0:00:30]} 3. g3 {[%emt 0:00:00]} Bg7 {[%emt 0:00:30]} 4. Bg2 {[%emt 0:00:30]} O-O {[%emt 0:00:30]} 5. O-O {[%emt 0:00:30]} c5 {[%emt 0:00:00]} 6. d4 {[%emt 0:02:30]} d6 {[%emt 0:00:00]} 7. Nc3 {[%emt 0:00:30]} Nc6 {[%emt 0:00:00]} 8. dxc5 {[%emt 0:02:30]} dxc5 {[%emt 0:00:00]} 9. Be3 {[%emt 0:02:30]} Be6 {[%emt 0:00:00]} 10. Qa4 {[%emt 0:03:30]} Nd4 {[%emt 0:00:00]} 11. Rad1 {[%emt 0:08:30]} Bd7 {[%emt 0:00:00]} 12. Qa3 {[%emt 0:00:30]} Nc2 {[%emt 0:00:00]} 13. Qb3 {[%emt 0:09:30]} Nxe3 {[%emt 0:00:00]} 14. fxe3 {[%emt 0:00:30]} Qc7 {[%emt 0:04:00]} 15. Ng5 {[%emt 0:13:30]} Qe5 {[%emt 0:05:30]} 16. Nd5 {[%emt 0:02:30]} Nxd5 {[%emt 0:02:30]} 17. Rxd5 {[%emt 0:00:30]} Qc7 {[%emt 0:00:00]} 18. Rfd1 {[%emt 0:11:30]} Bc6 {[%emt 0:02:00]} 19. R5d3 {[%emt 0:00:30]} Qe5 {[%emt 0:05:30]} 20. Bxc6 {[%emt 0:04:30]} bxc6 {[%emt 0:01:30]} 21. Nf3 {[%emt 0:00:30]} Qe6 {[%emt 0:04:30]} 22. Qc2 {[%emt 0:03:30]} Rab8 {[%emt 0:00:30]} 23. b3 {[%emt 0:00:30]} a5 {[%emt 0:00:30]} 24. Qd2 {[%emt 0:07:30]} a4 {[%emt 0:00:30]} 25. Qa5 {[%emt 0:00:30]} axb3 {[%emt 0:01:30]} 26. axb3 {[%emt 0:00:30]} Qf5 {[%emt 0:02:30]} 27. Qc7 {[%emt 0:02:30]} e5 {[%emt 0:03:30]} 28. Qxc6 {[%emt 0:02:30]} e4 {[%emt 0:07:30]} 29. Nh4 {[%emt 0:02:13]} Qg4 {[%emt 0:04:30]} 30. R3d2 {[%emt 0:00:25]} Bc3 {[%emt 0:04:30]} 31. Rc2 {[%emt 0:01:16]} Rfc8 {[%emt 0:02:30]} 32. Qd5 {[%emt 0:04:15]} Bf6 {[%emt 0:01:30]} 33. Qd7 {[%emt 0:00:47]} Qg5 {[%emt 0:01:30]} 34. Rf1 {[%emt 0:02:08]} Qxe3+ {[%emt 0:03:30]} 35. Kh1 {[%emt 0:00:45]} Rd8 {[%emt 0:04:30]} 36. Qc7 {[%emt 0:01:17]} Bxh4 {[%emt 0:13:30]} 37. Qxf7+ {[%emt 0:03:47]} Kh8 {[%emt 0:00:30]} 38. gxh4 {[%emt 0:00:42]} Rf8 {[%emt 0:00:30]} 39. Qxf8+ {[%emt 0:00:05]} Rxf8 {[%emt 0:00:30]} 40. Rxf8+ {[%emt 0:00:30]} Kg7 {[%emt 0:00:00]} 41. Rf1 {[%emt 0:02:00]} Qxb3 {[%emt 0:01:00]} 42. Rfc1 {[%emt 0:02:34]} e3 {[%emt 0:01:30]} 43. Rc3 {[%emt 0:01:16]} Qb7+ {[%emt 0:01:30]} 44. Kg1 {[%emt 0:00:30]} Qe4 {[%emt 0:00:00]} 45. Rf1 {[%emt 0:01:07]} Qg4+ {[%emt 0:00:00]} 46. Kh1 {[%emt 0:00:00]} Qxe2 {[%emt 0:00:30]} 47. Rcc1 {[%emt 0:00:00]} Qg4 {[%emt 0:00:30]} 48. h5 {[%emt 0:00:34]} e2 {[%emt 0:01:30]} 49. Rfe1 {[%emt 0:00:27]} Qf3+ {[%emt 0:02:30]} 50. Kg1 {[%emt 0:00:30]} gxh5 {[%emt 0:00:00]} 51. Ra1 {[%emt 0:00:33]} Qe3+ {[%emt 0:01:00]} 52. Kh1 {[%emt 0:00:33]} Qf2 {[%emt 0:03:30]} 53. h4 {[%emt 0:01:07]} Kf6 {[%emt 0:00:30]} 54. Rg1 {[%emt 0:01:28]} Kf5 {[%emt 0:03:58]} 55. Rab1 {[%emt 0:01:11]} Kf4 {[%emt 0:00:23]} 56. Rb8 {[%emt 0:01:03]} Qxh4+ {[%emt 0:00:30]} 57. Kg2 {[%emt 0:00:30]} Qg3+ {[%emt 0:00:00]} 0-1

[Event "10th Cesme Open-A 2024"]
[Site "Cesme"]
[Date "2024.06.27"]
[Round "6"]
[White "Demirbag, Alihan"]
[Black "Maruflu, Enes Yusuf"]
[Result "1-0"]
[ECO "B56"]
[WhiteElo "2055"]
[BlackElo "2141"]
[Annotator "RC"]
[PlyCount "123"]
[EventDate "2024.06.23"]
[EventType "swiss"]
[EventCountry "TUR"]
[SourceTitle "playchess.com"]
[Source "ChessBase"]
[SourceQuality "1"]
[TimeControl "5400+30"]

1. e4 {[%emt 0:09:00]} c5 {[%emt 0:01:00]} 2. Nf3 {[%emt 0:00:30]} d6 {[%emt 0:00:30]} 3. d4 {[%emt 0:00:30]} cxd4 {[%emt 0:00:30]} 4. Nxd4 {[%emt 0:00:00]} Nf6 {[%emt 0:00:00]} 5. Nc3 {[%emt 0:00:00]} Nc6 {[%emt 0:00:00]} 6. f3 {[%emt 0:00:00]} e5 {[%emt 0:00:30]} 7. Nb3 {[%emt 0:01:00]} Be7 {[%emt 0:01:30]} 8. Be3 {[%emt 0:00:30]} Be6 {[%emt 0:01:30]} 9. Qd2 {[%emt 0:01:30]} d5 {[%emt 0:02:30]} 10. exd5 {[%emt 0:00:00]} Nxd5 {[%emt 0:00:30]} 11. Nxd5 {[%emt 0:00:00]} Qxd5 {[%emt 0:00:00]} 12. O-O-O {[%emt 0:07:30]} O-O-O {[%emt 0:01:00]} 13. Qxd5 {[%emt 0:02:30]} Bxd5 {[%emt 0:00:00]} 14. Bb5 {[%emt 0:02:30]} Kc7 {[%emt 0:00:00]} 15. f4 {[%emt 0:06:30]} Bxg2 {[%emt 0:11:30]} 16. Rxd8 {[%emt 0:00:30]} Rxd8 {[%emt 0:00:30]} 17. Rg1 {[%emt 0:00:00]} Be4 {[%emt 0:01:30]} 18. Bxc6 {[%emt 0:02:00]} Kxc6 {[%emt 0:13:30]} 19. fxe5 {[%emt 0:00:30]} Bg6 {[%emt 0:12:30]} 20. Na5+ {[%emt 0:03:30]} Kc7 {[%emt 0:09:30]} 21. Nc4 {[%emt 0:01:30]} b6 {[%emt 0:00:30]} 22. Nd6 {[%emt 0:00:30]} Kc6 {[%emt 0:00:30]} 23. a4 {[%emt 0:52:03]} Kd5 {[%emt 0:40:23]} 24. Nb5 {[%emt 0:00:30]} Rc8 {[%emt 0:00:30]} 25. Rg2 {[%emt 0:00:30]} Bc5 {[%emt 0:00:30]} 26. Bf4 {[%emt 0:00:30]} Ke4 {[%emt 0:00:30]} 27. Bd2 {[%emt 0:00:30]} Kxe5 {[%emt 0:00:30]} 28. Bc3+ {[%emt 0:00:30]} Kf4 {[%emt 0:00:30]} 29. Bxg7 {[%emt 0:00:30]} a5 {[%emt 0:00:30]} 30. Nd4 {[%emt 0:00:30]} h5 {[%emt 0:00:30]} 31. Ne6+ {[%emt 0:00:30]} fxe6 {[%emt 0:00:30]} 32. Rxg6 {[%emt 0:00:30]} e5 {[%emt 0:00:30]} 33. Rf6+ {[%emt 0:00:30]} Ke3 {[%emt 0:00:30]} 34. Rf5 {[%emt 0:00:30]} e4 {[%emt 0:00:30]} 35. Kd1 {[%emt 0:00:30]} Rd8+ {[%emt 0:00:30]} 36. Ke1 {[%emt 0:00:30]} Bb4+ {[%emt 0:00:30]} 37. c3 {[%emt 0:00:30]} Bc5 {[%emt 0:00:01]} 38. Rxh5 {[%emt 0:02:58]} Kd3 {[%emt 0:00:22]} 39. Rg5 {[%emt 0:01:41]} Be7 {[%emt 0:00:54]} 40. Rg4 {[%emt 0:02:42]} Rg8 {[%emt 0:00:29]} 41. h3 {[%emt 0:01:41]} Bd6 {[%emt 0:01:53]} 42. Rg5 {[%emt 0:02:12]} Be5 {[%emt 0:00:45]} 43. Rxe5 {[%emt 0:00:20]} Rxg7 {[%emt 0:00:03]} 44. Kf2 {[%emt 0:01:12]} Rf7+ {[%emt 0:00:30]} 45. Ke1 {[%emt 0:00:00]} Rf3 {[%emt 0:00:38]} 46. Rd5+ {[%emt 0:00:27]} Ke3 {[%emt 0:00:33]} 47. Rd6 {[%emt 0:00:30]} Rxh3 {[%emt 0:00:30]} 48. Kd1 {[%emt 0:00:00]} Rh1+ {[%emt 0:00:11]} 49. Kc2 {[%emt 0:00:02]} Rh2+ {[%emt 0:00:00]} 50. Kb3 {[%emt 0:00:10]} Kf4 {[%emt 0:00:54]} 51. Rxb6 {[%emt 0:00:57]} e3 {[%emt 0:01:04]} 52. Re6 {[%emt 0:00:10]} e2 {[%emt 0:00:33]} 53. Kc4 {[%emt 0:00:30]} Kf5 {[%emt 0:00:57]} 54. Re8 {[%emt 0:00:09]} Kf6 {[%emt 0:00:18]} 55. b4 {[%emt 0:02:13]} Kf5 {[%emt 0:00:50]} 56. b5 {[%emt 0:00:30]} Rh4+ {[%emt 0:00:14]} 57. Kd5 {[%emt 0:00:30]} Rxa4 {[%emt 0:00:12]} 58. Rxe2 {[%emt 0:00:30]} Ra1 {[%emt 0:00:09]} 59. Rf2+ {[%emt 0:00:03]} Kg4 {[%emt 0:00:11]} 60. c4 {[%emt 0:00:33]} a4 {[%emt 0:00:09]} 61. Kc6 {[%emt 0:00:33]} a3 {[%emt 0:00:30]} 62. c5 {[%emt 0:00:00]} 1-0

[Event "10th Cesme Open-A 2024"]
[Site "Cesme"]
[Date "2024.06.27"]
[Round "6"]
[White "Zerey, Demhat"]
[Black "Ozsakallioglu, Okan"]
[Result "1-0"]
[ECO "B13"]
[WhiteElo "2038"]
[BlackElo "2402"]
[Annotator "RC"]
[PlyCount "119"]
[EventDate "2024.06.23"]
[EventType "swiss"]
[EventCountry "TUR"]
[SourceTitle "playchess.com"]
[Source "ChessBase"]
[SourceQuality "1"]
[TimeControl "5400+30"]

1. d4 {[%emt 0:01:00]} d5 {[%emt 0:07:00]} 2. Bf4 {[%emt 0:00:00]} c5 {[%emt 0:00:30]} 3. e3 {[%emt 0:00:00]} Nc6 {[%emt 0:00:30]} 4. Nf3 {[%emt 0:00:00]} cxd4 {[%emt 0:00:00]} 5. exd4 {[%emt 0:00:00]} Bf5 {[%emt 0:00:00]} 6. Nbd2 {[%emt 0:03:30]} e6 {[%emt 0:00:30]} 7. c3 {[%emt 0:00:30]} Bd6 {[%emt 0:02:30]} 8. Bxd6 {[%emt 0:01:30]} Qxd6 {[%emt 0:00:30]} 9. Bb5 {[%emt 0:00:00]} Nge7 {[%emt 0:00:30]} 10. O-O {[%emt 0:01:00]} h6 {[%emt 0:07:30]} 11. Re1 {[%emt 0:02:30]} O-O {[%emt 0:00:30]} 12. Nb3 {[%emt 0:01:30]} a6 {[%emt 0:01:30]} 13. Bxc6 {[%emt 0:03:30]} Nxc6 {[%emt 0:00:30]} 14. a4 {[%emt 0:01:30]} a5 {[%emt 0:02:30]} 15. Qe2 {[%emt 0:02:30]} b6 {[%emt 0:01:30]} 16. Rac1 {[%emt 0:06:30]} Ne7 {[%emt 0:02:30]} 17. Nbd2 {[%emt 0:06:30]} Qd7 {[%emt 0:06:30]} 18. b3 {[%emt 0:01:30]} Rfc8 {[%emt 0:00:30]} 19. h3 {[%emt 0:10:30]} Rab8 {[%emt 0:01:30]} 20. c4 {[%emt 0:10:30]} dxc4 {[%emt 0:04:30]} 21. Nxc4 {[%emt 0:00:30]} Nd5 {[%emt 0:01:30]} 22. Nfe5 {[%emt 0:00:30]} Qe7 {[%emt 0:00:30]} 23. Qd2 {[%emt 0:07:30]} Bh7 {[%emt 0:11:30]} 24. Ne3 {[%emt 0:03:30]} Nb4 {[%emt 0:07:30]} 25. Rxc8+ {[%emt 0:05:30]} Rxc8 {[%emt 0:00:30]} 26. Rc1 {[%emt 0:00:30]} Rb8 {[%emt 0:13:30]} 27. Qc3 {[%emt 0:02:30]} Be4 {[%emt 0:00:30]} 28. Qc7 {[%emt 0:01:30]} Qxc7 {[%emt 0:00:30]} 29. Rxc7 {[%emt 0:00:30]} f6 {[%emt 0:02:30]} 30. Nd7 {[%emt 0:00:30]} Rd8 {[%emt 0:00:00]} 31. Nxb6 {[%emt 0:03:30]} Rxd4 {[%emt 0:00:00]} 32. Nbc4 {[%emt 0:01:30]} Nc2 {[%emt 0:05:30]} 33. Nxc2 {[%emt 0:01:30]} Bxc2 {[%emt 0:00:00]} 34. Nxa5 {[%emt 0:00:00]} Rd1+ {[%emt 0:00:00]} 35. Kh2 {[%emt 0:00:00]} Rd2 {[%emt 0:00:00]} 36. f3 {[%emt 0:00:30]} Bd1 {[%emt 0:00:00]} 37. Rc3 {[%emt 0:02:30]} Rb2 {[%emt 0:00:30]} 38. Kg1 {[%emt 0:00:30]} e5 {[%emt 0:03:30]} 39. Kf1 {[%emt 0:02:30]} Bc2 {[%emt 0:01:28]} 40. Ke1 {[%emt 0:02:28]} Bf5 {[%emt 0:00:44]} 41. Nc4 {[%emt 0:03:23]} Rb1+ {[%emt 0:00:17]} 42. Ke2 {[%emt 0:00:56]} Be6 {[%emt 0:00:25]} 43. Nd2 {[%emt 0:00:24]} Rg1 {[%emt 0:03:29]} 44. Kf2 {[%emt 0:00:03]} Rd1 {[%emt 0:00:44]} 45. Ne4 {[%emt 0:00:56]} Bd5 {[%emt 0:00:47]} 46. Nc5 {[%emt 0:02:18]} Rd2+ {[%emt 0:00:55]} 47. Kf1 {[%emt 0:00:07]} Kf7 {[%emt 0:00:33]} 48. b4 {[%emt 0:01:36]} Rb2 {[%emt 0:00:21]} 49. Nd3 {[%emt 0:01:54]} Ra2 {[%emt 0:00:27]} 50. a5 {[%emt 0:00:27]} Ke6 {[%emt 0:01:20]} 51. Nc5+ {[%emt 0:01:49]} Kd6 {[%emt 0:00:30]} 52. Ne4+ {[%emt 0:01:17]} Ke6 {[%emt 0:01:04]} 53. Rc8 {[%emt 0:00:59]} f5 {[%emt 0:03:20]} 54. Nc3 {[%emt 0:00:48]} Rc2 {[%emt 0:02:12]} 55. a6 {[%emt 0:01:15]} Kd7 {[%emt 0:00:48]} 56. Rc5 {[%emt 0:00:13]} Bc6 {[%emt 0:00:34]} 57. a7 {[%emt 0:00:44]} Ba8 {[%emt 0:01:23]} 58. b5 {[%emt 0:01:23]} e4 {[%emt 0:00:30]} 59. fxe4 {[%emt 0:00:30]} fxe4 {[%emt 0:00:00]} 60. b6 {[%emt 0:00:33]} 1-0

[Event "10th Cesme Open-A 2024"]
[Site "Cesme"]
[Date "2024.06.27"]
[Round "6"]
[White "Demirbas, Emre"]
[Black "Baylav, Can"]
[Result "1/2-1/2"]
[ECO "A05"]
[WhiteElo "2012"]
[BlackElo "2118"]
[Annotator "RC"]
[PlyCount "149"]
[EventDate "2024.06.23"]
[EventType "swiss"]
[EventCountry "TUR"]
[SourceTitle "playchess.com"]
[Source "ChessBase"]
[SourceQuality "1"]
[TimeControl "5400+30"]

1. Nf3 d5 2. g3 Nf6 3. Bg2 g6 4. b3 Bg7 5. Bb2 c5 6. O-O O-O 7. c4 d4 8. e3 Nc6 9. exd4 cxd4 10. d3 Nd7 11. Re1 Re8 12. a3 a5 13. Nbd2 Nc5 14. Ne4 Nxe4 15. Rxe4 Bf5 16. Re1 e5 17. Qc2 Be6 18. Bc1 h6 19. Rb1 f5 20. Nd2 e4 21. dxe4 d3 22. Qd1 Nd4 23. e5 Ne2+ 24. Rxe2 dxe2 25. Qxe2 Qc7 26. f4 Bf8 27. h4 Bc5+ 28. Kh2 Rad8 29. Nf3 Qe7 30. h5 gxh5 31. Nh4 Qf7 32. Bf3 Re7 33. Bxh5 Qg7 34. b4 axb4 35. axb4 Bd4 36. Bg6 Rc7 37. c5 Ra8 38. Bxf5 Ba2 39. Bb2 Bxb1 40. Qc4+ Rf7 41. Bxd4 Ba2 42. Qc3 Qf8 43. Ng6 Qe8 44. g4 Be6 45. Nh4 Ra2+ 46. Kg3 Bxf5 47. Nxf5 Qe6 48. Ne3 h5 49. f5 h4+ 50. Kxh4 Qh6+ 51. Kg3 Qh2+ 52. Kf3 Qh1+ 53. Kg3 Qh2+ 54. Kf3 Rf2+ 55. Ke4 Rf4+ 56. Kd3 Rd7 57. Qb3+ Kf8 58. Nd5 Qh3+ 59. Be3 Qf1+ 60. Kc3 Qa1+ 61. Kc2 Rf1 62. Bh6+ Ke8 63. Nf6+ Kd8 64. Qg8+ Kc7 65. Nd5+ Rxd5 66. Qxd5 Qb1+ 67. Kc3 Qa1+ 68. Kc2 Qa4+ 69. Kc3 Rd1 {[%emt 2:04:19]} 70. Bd2 {[%emt 2:02:34]} Qa1+ {[%emt 0:00:30]} 71. Kd3 {[%emt 0:00:30]} Qb1+ {[%emt 0:00:30]} 72. Ke2 {[%emt 0:00:30]} Rh1 {[%emt 0:00:16]} 73. Qd6+ {[%emt 0:02:36]} Kc8 {[%emt 0:00:03]} 74. Qf8+ {[%emt 0:00:45]} Kc7 {[%emt 0:00:30]} 75. Qd6+ {[%emt 0:00:00]} 1/2-1/2

[Event "10th Cesme Open-A 2024"]
[Site "Cesme"]
[Date "2024.06.27"]
[Round "6"]
[White "Nazarian, Arash"]
[Black "Ozdemir, Serhan Berat"]
[Result "0-1"]
[ECO "B80"]
[WhiteElo "2007"]
[BlackElo "2225"]
[Annotator "RC"]
[PlyCount "60"]
[EventDate "2024.06.23"]
[EventType "swiss"]
[EventCountry "TUR"]
[SourceTitle "playchess.com"]
[Source "ChessBase"]
[SourceQuality "1"]
[TimeControl "5400+30"]

1. e4 {[%emt 0:01:00]} c5 {[%emt 0:04:00]} 2. Nf3 {[%emt 0:00:30]} e6 {[%emt 0:00:30]} 3. g3 {[%emt 0:00:00]} a6 {[%emt 0:01:30]} 4. Bg2 {[%emt 0:00:00]} Nc6 {[%emt 0:00:30]} 5. O-O {[%emt 0:00:00]} d6 {[%emt 0:01:30]} 6. d4 {[%emt 0:05:00]} cxd4 {[%emt 0:00:00]} 7. Nxd4 {[%emt 0:00:30]} Bd7 {[%emt 0:00:00]} 8. Nc3 {[%emt 0:01:30]} Nf6 {[%emt 0:01:30]} 9. Be3 {[%emt 0:00:30]} Be7 {[%emt 0:00:00]} 10. Nxc6 {[%emt 0:02:30]} Bxc6 {[%emt 0:01:00]} 11. Qe2 {[%emt 0:04:30]} Rc8 {[%emt 0:03:30]} 12. Rad1 {[%emt 0:02:30]} Qc7 {[%emt 0:03:30]} 13. f4 {[%emt 0:03:30]} b5 {[%emt 0:08:30]} 14. a3 {[%emt 0:00:30]} Qb7 {[%emt 0:01:30]} 15. Bd4 {[%emt 0:04:30]} O-O {[%emt 0:02:30]} 16. g4 {[%emt 0:00:30]} Nd7 {[%emt 0:01:30]} 17. f5 {[%emt 0:10:30]} Ne5 {[%emt 0:03:30]} 18. h3 {[%emt 0:11:30]} a5 {[%emt 0:02:30]} 19. b4 {[%emt 0:10:30]} axb4 {[%emt 0:05:30]} 20. axb4 {[%emt 0:00:30]} Bd7 {[%emt 0:02:30]} 21. Nb1 {[%emt 0:01:30]} Rfe8 {[%emt 0:04:30]} 22. Qf2 {[%emt 0:02:30]} Bf6 {[%emt 0:06:30]} 23. c3 {[%emt 0:02:30]} exf5 {[%emt 0:00:30]} 24. exf5 {[%emt 0:01:30]} Bc6 {[%emt 0:01:30]} 25. Bxc6 {[%emt 0:00:30]} Qxc6 {[%emt 0:00:30]} 26. Qg3 {[%emt 0:05:30]} Bd8 {[%emt 0:05:30]} 27. g5 {[%emt 0:06:30]} Ra8 {[%emt 0:03:30]} 28. f6 {[%emt 0:01:30]} Ra2 {[%emt 0:00:30]} 29. fxg7 {[%emt 0:02:30]} Bxg5 {[%emt 0:05:30]} 30. Rf5 {[%emt 0:07:06]} Bh4 {[%emt 0:01:30]} 0-1